[Event "Betsys MČR v online bleskovém šachu 2021"]
[Site "Chess.com"]
[Date "2021.04.17"]
[Round "9"]
[White "reflexia64"]
[Black "Gicko13"]
[Result "1/2-1/2"]
[WhiteElo "2269"]
[BlackElo "2111"]
[TimeControl "180+1"]
[EndTime "10:31:41 PDT"]
[Termination "Remíza – nedostatek materiálu"]

1. b3 {[%clk 0:03:00.9]} 1... e5 {[%clk 0:02:59.2]} 2. e3 {[%clk 0:03:00.1]}
2... d5 {[%clk 0:02:57.3]} 3. Bb2 {[%clk 0:02:59.3]} 3... Nc6 {[%clk 0:02:55.8]}
4. Bb5 {[%clk 0:02:57.9]} 4... Bd6 {[%clk 0:02:55.3]} 5. f4 {[%clk 0:02:57.4]}
5... Qh4+ {[%clk 0:02:23.6]} 6. g3 {[%clk 0:02:56.2]} 6... Qe7 {[%clk
0:02:24.1]} 7. Nf3 {[%clk 0:02:49.9]} 7... Bg4 {[%clk 0:02:23.3]} 8. h3 {[%clk
0:02:48.3]} 8... Bxf3 {[%clk 0:02:21.6]} 9. Qxf3 {[%clk 0:02:47.4]} 9... Nf6
{[%clk 0:02:07.6]} 10. O-O {[%clk 0:02:42.4]} 10... a6 {[%clk 0:01:58.4]} 11.
Bxc6+ {[%clk 0:02:23.1]} 11... bxc6 {[%clk 0:01:59.3]} 12. fxe5 {[%clk
0:02:11.4]} 12... Bxe5 {[%clk 0:01:58.9]} 13. Bxe5 {[%clk 0:02:10.8]} 13... Qxe5
{[%clk 0:01:59.8]} 14. Nc3 {[%clk 0:02:10.5]} 14... O-O {[%clk 0:01:55.4]} 15.
Qf4 {[%clk 0:02:09.5]} 15... Qe7 {[%clk 0:01:54.2]} 16. Rf2 {[%clk 0:02:01]}
16... Rae8 {[%clk 0:01:49.3]} 17. Raf1 {[%clk 0:01:59.5]} 17... Qd6 {[%clk
0:01:42.6]} 18. Qxd6 {[%clk 0:01:46.9]} 18... cxd6 {[%clk 0:01:43.5]} 19. g4
{[%clk 0:01:46.8]} 19... Ne4 {[%clk 0:01:40.9]} 20. Nxe4 {[%clk 0:01:45.6]}
20... Rxe4 {[%clk 0:01:41.8]} 21. Rf4 {[%clk 0:01:44.3]} 21... Rfe8 {[%clk
0:01:41.4]} 22. Kg2 {[%clk 0:01:43.1]} 22... f6 {[%clk 0:01:37.1]} 23. Kg3
{[%clk 0:01:41.8]} 23... Kf7 {[%clk 0:01:30.6]} 24. c3 {[%clk 0:01:33.3]} 24...
Kg6 {[%clk 0:01:23.3]} 25. R1f2 {[%clk 0:01:20.6]} 25... h5 {[%clk 0:01:18.1]}
26. Rf5 {[%clk 0:01:07.6]} 26... hxg4 {[%clk 0:01:12.3]} 27. hxg4 {[%clk
0:01:07]} 27... Rh8 {[%clk 0:01:11.4]} 28. R5f4 {[%clk 0:00:56.2]} 28... Rh1
{[%clk 0:01:08.9]} 29. Kf3 {[%clk 0:00:43.9]} 29... Rxf4+ {[%clk 0:00:50.5]} 30.
exf4 {[%clk 0:00:43.3]} 30... Ra1 {[%clk 0:00:48.2]} 31. d3 {[%clk 0:00:37]}
31... Kf7 {[%clk 0:00:44.3]} 32. c4 {[%clk 0:00:34.7]} 32... dxc4 {[%clk
0:00:30.5]} 33. bxc4 {[%clk 0:00:31.9]} 33... Rc1 {[%clk 0:00:26]} 34. Rb2
{[%clk 0:00:29.9]} 34... Rc3 {[%clk 0:00:24.8]} 35. Ke4 {[%clk 0:00:28.4]} 35...
d5+ {[%clk 0:00:19.3]} 36. Kd4 {[%clk 0:00:24.9]} 36... Ra3 {[%clk 0:00:19.3]}
37. Rb7+ {[%clk 0:00:22.6]} 37... Kg6 {[%clk 0:00:17.4]} 38. f5+ {[%clk
0:00:21.4]} 38... Kh6 {[%clk 0:00:17.6]} 39. Rc7 {[%clk 0:00:20.3]} 39... dxc4
{[%clk 0:00:13.3]} 40. dxc4 {[%clk 0:00:17.6]} 40... Rxa2 {[%clk 0:00:13.6]} 41.
Rxc6 {[%clk 0:00:17]} 41... Rg2 {[%clk 0:00:13.4]} 42. Rxa6 {[%clk 0:00:16.7]}
42... Rxg4+ {[%clk 0:00:13.3]} 43. Kd3 {[%clk 0:00:13.3]} 43... Rf4 {[%clk
0:00:11.4]} 44. c5 {[%clk 0:00:13.3]} 44... Rxf5 {[%clk 0:00:11.2]} 45. Kd4
{[%clk 0:00:12.8]} 45... Rf1 {[%clk 0:00:09.8]} 46. Ra3 {[%clk 0:00:11.9]} 46...
Rd1+ {[%clk 0:00:08.7]} 47. Rd3 {[%clk 0:00:11.4]} 47... Rc1 {[%clk 0:00:08.9]}
48. Rc3 {[%clk 0:00:10.3]} 48... Rd1+ {[%clk 0:00:09.1]} 49. Ke4 {[%clk
0:00:10.2]} 49... g5 {[%clk 0:00:05]} 50. c6 {[%clk 0:00:09.7]} 50... Rd8 {[%clk
0:00:05]} 51. Kf5 {[%clk 0:00:09.1]} 51... Kg7 {[%clk 0:00:03.9]} 52. c7 {[%clk
0:00:08.8]} 52... Rc8 {[%clk 0:00:04.2]} 53. Ke6 {[%clk 0:00:08.9]} 53... g4
{[%clk 0:00:04.4]} 54. Kf5 {[%clk 0:00:06.4]} 54... g3 {[%clk 0:00:02.8]} 55.
Rxg3+ {[%clk 0:00:05.3]} 55... Kf7 {[%clk 0:00:03.3]} 56. Rh3 {[%clk 0:00:03.9]}
56... Ke7 {[%clk 0:00:03.7]} 57. Rh7+ {[%clk 0:00:02.7]} 57... Kd6 {[%clk
0:00:03.9]} 58. Kxf6 {[%clk 0:00:02.5]} 58... Rxc7 {[%clk 0:00:04.6]} 59. Rxc7
{[%clk 0:00:02.6]} 59... Kxc7 {[%clk 0:00:05.5]} 1/2-1/2

[Event "Betsys MČR v online bleskovém šachu 2021"]
[Site "Chess.com"]
[Date "2021.04.17"]
[Round "9"]
[White "kubaches123"]
[Black "Petroniuss"]
[Result "1-0"]
[WhiteElo "2107"]
[BlackElo "2240"]
[TimeControl "180+1"]
[EndTime "10:31:42 PDT"]
[Termination "Uživatel kubaches123 zvítězil na čas"]

1. d4 {[%clk 0:03:00.9]} 1... d5 {[%clk 0:02:59.9]} 2. c4 {[%clk 0:03:01.3]}
2... dxc4 {[%clk 0:03:00.8]} 3. e3 {[%clk 0:02:55.5]} 3... e5 {[%clk 0:02:58.7]}
4. Bxc4 {[%clk 0:02:51.2]} 4... exd4 {[%clk 0:02:58.5]} 5. exd4 {[%clk
0:02:52.1]} 5... Bd6 {[%clk 0:02:58.7]} 6. Nf3 {[%clk 0:02:51.9]} 6... Nf6
{[%clk 0:02:58.8]} 7. O-O {[%clk 0:02:51.7]} 7... O-O {[%clk 0:02:59.2]} 8. Nc3
{[%clk 0:02:51.3]} 8... Bg4 {[%clk 0:02:51.4]} 9. Bg5 {[%clk 0:02:50.7]} 9...
Nc6 {[%clk 0:02:49.3]} 10. Be3 {[%clk 0:02:20.9]} 10... Ne7 {[%clk 0:02:26.8]}
11. h3 {[%clk 0:02:01.4]} 11... Bh5 {[%clk 0:02:25]} 12. g4 {[%clk 0:01:47.5]}
12... Bg6 {[%clk 0:02:24.9]} 13. Ne5 {[%clk 0:01:47.3]} 13... c6 {[%clk
0:02:21.8]} 14. Qf3 {[%clk 0:01:24.1]} 14... Qa5 {[%clk 0:01:35.9]} 15. Bf4
{[%clk 0:01:15.7]} 15... Ned5 {[%clk 0:01:26.1]} 16. Bg3 {[%clk 0:01:12.8]}
16... Nxc3 {[%clk 0:01:18]} 17. bxc3 {[%clk 0:01:13.7]} 17... Be4 {[%clk
0:01:18]} 18. Qe3 {[%clk 0:01:05.8]} 18... Bd5 {[%clk 0:01:17.9]} 19. Bd3 {[%clk
0:01:00.1]} 19... Rae8 {[%clk 0:01:16.8]} 20. c4 {[%clk 0:00:42.9]} 20... Be6
{[%clk 0:01:06.3]} 21. Rad1 {[%clk 0:00:39.7]} 21... Nd7 {[%clk 0:01:00.1]} 22.
f4 {[%clk 0:00:28.9]} 22... f6 {[%clk 0:00:49.4]} 23. Nxd7 {[%clk 0:00:18.1]}
23... Bxd7 {[%clk 0:00:50.3]} 24. Qf2 {[%clk 0:00:18.5]} 24... Qc3 {[%clk
0:00:48.7]} 25. c5 {[%clk 0:00:08.8]} 25... Bc7 {[%clk 0:00:46.1]} 26. Bb1
{[%clk 0:00:08.3]} 26... Be6 {[%clk 0:00:40.6]} 27. f5 {[%clk 0:00:04.4]} 27...
Bxg3 {[%clk 0:00:36.9]} 28. Qf3 {[%clk 0:00:04.1]} 28... Qxf3 {[%clk 0:00:31.3]}
29. Rxf3 {[%clk 0:00:05]} 29... Bc7 {[%clk 0:00:23.9]} 30. fxe6 {[%clk
0:00:04.6]} 30... Rxe6 {[%clk 0:00:24.8]} 31. a3 {[%clk 0:00:04.3]} 31... Kh8
{[%clk 0:00:22.4]} 32. d5 {[%clk 0:00:03]} 32... cxd5 {[%clk 0:00:20.7]} 33.
Rxd5 {[%clk 0:00:03.9]} 33... Rd8 {[%clk 0:00:20.7]} 34. Rxd8+ {[%clk
0:00:03.5]} 34... Bxd8 {[%clk 0:00:21.6]} 35. Rd3 {[%clk 0:00:04.1]} 35... Be7
{[%clk 0:00:20.4]} 36. Rd7 {[%clk 0:00:04.2]} 36... g6 {[%clk 0:00:19.7]} 37.
Ba2 {[%clk 0:00:02.6]} 37... Re2 {[%clk 0:00:18.8]} 38. Bc4 {[%clk 0:00:02.1]}
38... Re4 {[%clk 0:00:17.7]} 39. Bd5 {[%clk 0:00:02.3]} 39... Re5 {[%clk
0:00:17.8]} 40. Bxb7 {[%clk 0:00:02.8]} 40... Bxc5+ {[%clk 0:00:15.7]} 41. Kg2
{[%clk 0:00:03.3]} 41... Re7 {[%clk 0:00:15.2]} 42. Rxe7 {[%clk 0:00:03.4]}
42... Bxe7 {[%clk 0:00:16.1]} 43. Bc6 {[%clk 0:00:04.1]} 43... Bxa3 {[%clk
0:00:15.7]} 44. Kf3 {[%clk 0:00:05]} 44... Kg7 {[%clk 0:00:15.4]} 45. Ba4 {[%clk
0:00:05.7]} 45... Bc5 {[%clk 0:00:15.3]} 46. Bb3 {[%clk 0:00:06.6]} 46... f5
{[%clk 0:00:15.1]} 47. Ba4 {[%clk 0:00:07.2]} 47... fxg4+ {[%clk 0:00:13.3]} 48.
hxg4 {[%clk 0:00:08.1]} 48... g5 {[%clk 0:00:12.2]} 49. Ke4 {[%clk 0:00:07.8]}
49... Kf6 {[%clk 0:00:12.8]} 50. Bb3 {[%clk 0:00:07.7]} 50... Kg6 {[%clk
0:00:10.7]} 51. Ba4 {[%clk 0:00:07.2]} 51... h5 {[%clk 0:00:09.9]} 52. Be8+
{[%clk 0:00:07.4]} 52... Kf6 {[%clk 0:00:10]} 53. gxh5 {[%clk 0:00:08]} 53... a5
{[%clk 0:00:10.7]} 54. Ba4 {[%clk 0:00:07.8]} 54... Bd6 {[%clk 0:00:09.1]} 55.
Kf3 {[%clk 0:00:08]} 55... Kg7 {[%clk 0:00:06.4]} 56. Bc2 {[%clk 0:00:08.5]}
56... Kh6 {[%clk 0:00:06.5]} 57. Kg4 {[%clk 0:00:09.4]} 57... Be5 {[%clk
0:00:05.9]} 58. Ba4 {[%clk 0:00:10.3]} 58... Bf4 {[%clk 0:00:05.8]} 59. Bc6
{[%clk 0:00:11.2]} 59... Kg7 {[%clk 0:00:05.8]} 60. Ba4 {[%clk 0:00:12.1]} 60...
Bd2 {[%clk 0:00:04.7]} 61. Kf5 {[%clk 0:00:11]} 1-0

[Event "Betsys MČR v online bleskovém šachu 2021"]
[Site "Chess.com"]
[Date "2021.04.17"]
[Round "9"]
[White "RousekJan"]
[Black "Krtecci"]
[Result "0-1"]
[WhiteElo "1813"]
[BlackElo "2077"]
[TimeControl "180+1"]
[EndTime "10:31:42 PDT"]
[Termination "Uživatel Krtecci zvítězil matem"]

1. d4 {[%clk 0:03:00.9]} 1... Nf6 {[%clk 0:02:59.5]} 2. c4 {[%clk 0:03:00.5]}
2... e6 {[%clk 0:02:59.9]} 3. Nc3 {[%clk 0:02:52.8]} 3... Bb4 {[%clk 0:02:59.1]}
4. g3 {[%clk 0:02:44.1]} 4... O-O {[%clk 0:02:56.4]} 5. Bg2 {[%clk 0:02:43.8]}
5... c5 {[%clk 0:02:56.7]} 6. Nf3 {[%clk 0:02:41.2]} 6... Nc6 {[%clk 0:02:55.9]}
7. O-O {[%clk 0:02:38.1]} 7... Bxc3 {[%clk 0:02:53.7]} 8. bxc3 {[%clk
0:02:36.8]} 8... b6 {[%clk 0:02:53.8]} 9. Ne5 {[%clk 0:02:34]} 9... Bb7 {[%clk
0:02:44.5]} 10. Qa4 {[%clk 0:02:21]} 10... Qc7 {[%clk 0:02:38.4]} 11. Bf4 {[%clk
0:02:20.1]} 11... Qc8 {[%clk 0:02:19.2]} 12. d5 {[%clk 0:02:15.2]} 12... Na5
{[%clk 0:02:09.4]} 13. dxe6 {[%clk 0:02:01.7]} 13... fxe6 {[%clk 0:02:01.8]} 14.
Rfd1 {[%clk 0:01:39.5]} 14... Bxg2 {[%clk 0:01:59.1]} 15. Kxg2 {[%clk
0:01:40.4]} 15... Qb7+ {[%clk 0:01:57.2]} 16. Kg1 {[%clk 0:01:37.2]} 16... Rad8
{[%clk 0:01:52.8]} 17. Rd2 {[%clk 0:01:24.3]} 17... d6 {[%clk 0:01:46]} 18. Nf3
{[%clk 0:01:13]} 18... Ne4 {[%clk 0:01:42.7]} 19. Rd3 {[%clk 0:01:10.1]} 19...
e5 {[%clk 0:01:36.7]} 20. Bg5 {[%clk 0:01:08.1]} 20... Rd7 {[%clk 0:01:11.9]}
21. Nxe5 {[%clk 0:00:55.7]} 21... Nxg5 {[%clk 0:01:11.5]} 22. h4 {[%clk
0:00:12.2]} 22... Nh3+ {[%clk 0:00:26.8]} 23. Kh2 {[%clk 0:00:12.2]} 23... Nxf2
{[%clk 0:00:18.6]} 24. Nxd7 {[%clk 0:00:11.8]} 24... Ng4+ {[%clk 0:00:12.3]} 25.
Kh3 {[%clk 0:00:08.7]} 25... Nf2+ {[%clk 0:00:10.8]} 26. Kh2 {[%clk 0:00:08.4]}
26... Rf7 {[%clk 0:00:08]} 27. Rf3 {[%clk 0:00:02.9]} 27... Ng4+ {[%clk
0:00:06.8]} 28. Kh3 {[%clk 0:00:03.1]} 28... Rxf3 {[%clk 0:00:06.1]} 29. exf3
{[%clk 0:00:02.3]} 29... Qxf3 {[%clk 0:00:06.1]} 30. Nf6+ {[%clk 0:00:01.7]}
30... Nxf6 {[%clk 0:00:04.1]} 31. Qd1 {[%clk 0:00:01.8]} 31... Qxd1 {[%clk
0:00:03.7]} 32. Rxd1 {[%clk 0:00:02.7]} 32... Nxc4 {[%clk 0:00:04.1]} 33. Re1
{[%clk 0:00:03.3]} 33... Kf7 {[%clk 0:00:04.4]} 34. Rf1 {[%clk 0:00:03.4]} 34...
d5 {[%clk 0:00:04.5]} 35. Rf2 {[%clk 0:00:04]} 35... Ke6 {[%clk 0:00:04.3]} 36.
g4 {[%clk 0:00:04.9]} 36... Ne4 {[%clk 0:00:04.6]} 37. Re2 {[%clk 0:00:04.9]}
37... Ke5 {[%clk 0:00:04.6]} 38. Kg2 {[%clk 0:00:04.5]} 38... Kf4 {[%clk
0:00:04.9]} 39. g5 {[%clk 0:00:04.7]} 39... Ne3+ {[%clk 0:00:05.2]} 40. Kh2
{[%clk 0:00:03.6]} 40... Nxc3 {[%clk 0:00:05]} 41. Rc2 {[%clk 0:00:03.3]} 41...
d4 {[%clk 0:00:04.9]} 42. Rf2+ {[%clk 0:00:02.7]} 42... Ke4 {[%clk 0:00:04.2]}
43. Rf7 {[%clk 0:00:03.3]} 43... Ng4+ {[%clk 0:00:04.1]} 44. Kg3 {[%clk
0:00:02.8]} 44... Ne2+ {[%clk 0:00:04.1]} 45. Kxg4 {[%clk 0:00:02.9]} 45... d3
{[%clk 0:00:04.5]} 46. Re7+ {[%clk 0:00:03.3]} 46... Kd4 {[%clk 0:00:04.5]} 47.
Rd7+ {[%clk 0:00:03.8]} 47... Kc3 {[%clk 0:00:04.9]} 48. Rxg7 {[%clk 0:00:03.4]}
48... d2 {[%clk 0:00:05.1]} 49. Rd7 {[%clk 0:00:03.5]} 49... Nd4 {[%clk
0:00:05.6]} 50. Rxd4 {[%clk 0:00:03]} 50... cxd4 {[%clk 0:00:05.5]} 51. h5
{[%clk 0:00:03.9]} 51... d1=Q+ {[%clk 0:00:05.9]} 52. Kf4 {[%clk 0:00:04.6]}
52... Qd3 {[%clk 0:00:05.9]} 53. Kg4 {[%clk 0:00:04.6]} 53... Qe4+ {[%clk
0:00:06.1]} 54. Kh3 {[%clk 0:00:04.1]} 54... Kd3 {[%clk 0:00:06.5]} 55. g6
{[%clk 0:00:04.2]} 55... hxg6 {[%clk 0:00:06.5]} 56. hxg6 {[%clk 0:00:05.1]}
56... Qxg6 {[%clk 0:00:06.3]} 57. Kh4 {[%clk 0:00:05]} 57... Ke3 {[%clk
0:00:06.7]} 58. a4 {[%clk 0:00:05.5]} 58... Kf3 {[%clk 0:00:07.1]} 59. a5 {[%clk
0:00:05.1]} 59... Qg4# {[%clk 0:00:07.5]} 0-1

[Event "Betsys MČR v online bleskovém šachu 2021"]
[Site "Chess.com"]
[Date "2021.04.17"]
[Round "9"]
[White "Jacques_se_mas"]
[Black "Pokemonchess"]
[Result "0-1"]
[WhiteElo "1743"]
[BlackElo "1946"]
[TimeControl "180+1"]
[EndTime "10:31:46 PDT"]
[Termination "Uživatel Pokemonchess zvítězil matem"]

1. d4 {[%clk 0:03:00.9]} 1... Nf6 {[%clk 0:02:57.7]} 2. Bg5 {[%clk 0:03:01.2]}
2... Ne4 {[%clk 0:02:53.2]} 3. h4 {[%clk 0:03:01.5]} 3... Nxg5 {[%clk
0:02:50.6]} 4. hxg5 {[%clk 0:03:01.8]} 4... g6 {[%clk 0:02:46.9]} 5. Nd2 {[%clk
0:02:53.1]} 5... Bg7 {[%clk 0:02:46]} 6. c3 {[%clk 0:02:53.6]} 6... d6 {[%clk
0:02:45.2]} 7. e3 {[%clk 0:02:54.1]} 7... Be6 {[%clk 0:02:44.4]} 8. Bd3 {[%clk
0:02:54.2]} 8... Nd7 {[%clk 0:02:43.1]} 9. Ngf3 {[%clk 0:02:52.9]} 9... Nb6
{[%clk 0:02:42.1]} 10. Qc2 {[%clk 0:02:47.7]} 10... Qd7 {[%clk 0:02:40.2]} 11.
Nb3 {[%clk 0:02:36.1]} 11... Bc4 {[%clk 0:02:27.8]} 12. O-O-O {[%clk 0:02:28.7]}
12... Bxd3 {[%clk 0:02:25.7]} 13. Qxd3 {[%clk 0:02:29.6]} 13... a5 {[%clk
0:02:18.8]} 14. Nbd2 {[%clk 0:02:12.8]} 14... a4 {[%clk 0:02:01.9]} 15. a3
{[%clk 0:02:09.8]} 15... Qe6 {[%clk 0:01:49.8]} 16. e4 {[%clk 0:02:04.8]} 16...
Qd7 {[%clk 0:01:30.4]} 17. Rh3 {[%clk 0:02:00.2]} 17... Ra5 {[%clk 0:01:27.5]}
18. Rdh1 {[%clk 0:01:58.9]} 18... h5 {[%clk 0:01:09.4]} 19. gxh6 {[%clk
0:01:59]} 19... Bf8 {[%clk 0:01:04.2]} 20. Kc2 {[%clk 0:01:37.4]} 20... d5
{[%clk 0:00:50]} 21. Ne5 {[%clk 0:01:26.7]} 21... Qe6 {[%clk 0:00:45.3]} 22.
exd5 {[%clk 0:00:57.7]} 22... Nxd5 {[%clk 0:00:37.1]} 23. g3 {[%clk 0:00:39.5]}
23... Nf6 {[%clk 0:00:32.6]} 24. f4 {[%clk 0:00:36.2]} 24... Nd7 {[%clk
0:00:29.7]} 25. Ndc4 {[%clk 0:00:35]} 25... Nxe5 {[%clk 0:00:27.8]} 26. fxe5
{[%clk 0:00:29.7]} 26... Ra6 {[%clk 0:00:24.5]} 27. Qe4 {[%clk 0:00:28.4]} 27...
c6 {[%clk 0:00:23.5]} 28. Qd3 {[%clk 0:00:27.3]} 28... Ra8 {[%clk 0:00:22.8]}
29. Rh4 {[%clk 0:00:23.8]} 29... Rd8 {[%clk 0:00:23]} 30. Nd2 {[%clk 0:00:17.5]}
30... b5 {[%clk 0:00:22.1]} 31. g4 {[%clk 0:00:16.7]} 31... Qd5 {[%clk
0:00:21.5]} 32. g5 {[%clk 0:00:16.5]} 32... e6 {[%clk 0:00:21.5]} 33. h7 {[%clk
0:00:16.2]} 33... Be7 {[%clk 0:00:20.1]} 34. Rg4 {[%clk 0:00:14.5]} 34... Qxh1
{[%clk 0:00:19.2]} 35. Qe2 {[%clk 0:00:13]} 35... Qxh7 {[%clk 0:00:19]} 36. Qf2
{[%clk 0:00:12.6]} 36... Qg7 {[%clk 0:00:18.9]} 37. Ne4 {[%clk 0:00:12.3]} 37...
Rd7 {[%clk 0:00:18.2]} 38. Nf6+ {[%clk 0:00:12]} 38... Bxf6 {[%clk 0:00:18.5]}
39. gxf6 {[%clk 0:00:11.8]} 39... Qf8 {[%clk 0:00:19.2]} 40. Qf3 {[%clk
0:00:11.7]} 40... Rc7 {[%clk 0:00:19.5]} 41. Rg3 {[%clk 0:00:11.9]} 41... Kd7
{[%clk 0:00:18.4]} 42. Kd3 {[%clk 0:00:12]} 42... Qa8 {[%clk 0:00:17.6]} 43. Rh3
{[%clk 0:00:11.4]} 43... Rxh3 {[%clk 0:00:16.5]} 44. Qxh3 {[%clk 0:00:12]} 44...
Rc8 {[%clk 0:00:16.9]} 45. Qh7 {[%clk 0:00:12]} 45... Rf8 {[%clk 0:00:17.3]} 46.
Qg7 {[%clk 0:00:11.8]} 46... Qe8 {[%clk 0:00:17.4]} 47. Qh7 {[%clk 0:00:11.9]}
47... Kc8 {[%clk 0:00:17.9]} 48. Qg7 {[%clk 0:00:12]} 48... Rg8 {[%clk
0:00:17.2]} 49. Qh6 {[%clk 0:00:10.8]} 49... Rh8 {[%clk 0:00:17.8]} 50. Qf4
{[%clk 0:00:10.1]} 50... Rh7 {[%clk 0:00:16.9]} 51. Qf3 {[%clk 0:00:08.1]} 51...
Kc7 {[%clk 0:00:17.1]} 52. Qe4 {[%clk 0:00:05.6]} 52... Qh8 {[%clk 0:00:16.9]}
53. c4 {[%clk 0:00:05.5]} 53... Rh3+ {[%clk 0:00:17.1]} 54. Kc2 {[%clk
0:00:05.1]} 54... Rh2+ {[%clk 0:00:17.7]} 55. Kc3 {[%clk 0:00:05.2]} 55... Qh3+
{[%clk 0:00:17]} 56. Kb4 {[%clk 0:00:05.2]} 56... Qb3+ {[%clk 0:00:14.6]} 57.
Ka5 {[%clk 0:00:05.3]} 57... bxc4 {[%clk 0:00:12.3]} 58. Qf4 {[%clk 0:00:04]}
58... Qb6+ {[%clk 0:00:08.8]} 59. Kxa4 {[%clk 0:00:03.7]} 59... Qb5# {[%clk
0:00:09.4]} 0-1

[Event "Betsys MČR v online bleskovém šachu 2021"]
[Site "Chess.com"]
[Date "2021.04.17"]
[Round "9"]
[White "masodj"]
[Black "Staci_fiknout_Navara_Plat"]
[Result "0-1"]
[WhiteElo "1721"]
[BlackElo "1951"]
[TimeControl "180+1"]
[EndTime "10:31:50 PDT"]
[Termination "Uživatel Staci_fiknout_Navara_Plat zvítězil na čas"]

1. e4 {[%clk 0:03:00.9]} 1... d5 {[%clk 0:02:59.6]} 2. exd5 {[%clk 0:02:59.7]}
2... Nf6 {[%clk 0:03:00.1]} 3. Nc3 {[%clk 0:02:58.9]} 3... Nxd5 {[%clk
0:03:00.5]} 4. Bc4 {[%clk 0:02:57.6]} 4... c6 {[%clk 0:03:00.4]} 5. d3 {[%clk
0:02:55.8]} 5... g6 {[%clk 0:02:50.8]} 6. Nf3 {[%clk 0:02:53.6]} 6... Bg4 {[%clk
0:02:49.4]} 7. h3 {[%clk 0:02:50.4]} 7... Bxf3 {[%clk 0:02:49]} 8. Qxf3 {[%clk
0:02:50.2]} 8... e6 {[%clk 0:02:49.1]} 9. O-O {[%clk 0:02:39.9]} 9... Bg7 {[%clk
0:02:48.7]} 10. Bd2 {[%clk 0:02:39]} 10... O-O {[%clk 0:02:48.3]} 11. Rae1
{[%clk 0:02:12.9]} 11... Nd7 {[%clk 0:02:47.3]} 12. Bb3 {[%clk 0:02:06.4]} 12...
Nc5 {[%clk 0:02:41.9]} 13. Nxd5 {[%clk 0:02:04.6]} 13... Nxb3 {[%clk 0:02:29.2]}
14. axb3 {[%clk 0:01:55.9]} 14... cxd5 {[%clk 0:02:17.5]} 15. Bc3 {[%clk
0:01:50.9]} 15... Rc8 {[%clk 0:02:16.1]} 16. Bxg7 {[%clk 0:01:48.8]} 16... Kxg7
{[%clk 0:02:17]} 17. c4 {[%clk 0:01:46.8]} 17... dxc4 {[%clk 0:02:08]} 18. dxc4
{[%clk 0:01:46.3]} 18... Rc7 {[%clk 0:01:55.2]} 19. Rd1 {[%clk 0:01:43]} 19...
Qf6 {[%clk 0:01:50.6]} 20. Qc3 {[%clk 0:01:33.2]} 20... Rfc8 {[%clk 0:01:41.2]}
21. Rd3 {[%clk 0:01:25.1]} 21... Qxc3 {[%clk 0:01:39.1]} 22. bxc3 {[%clk
0:01:23.4]} 22... b5 {[%clk 0:01:39.2]} 23. cxb5 {[%clk 0:01:03.7]} 23... Rxc3
{[%clk 0:01:38.2]} 24. Rfd1 {[%clk 0:01:01.2]} 24... R8c5 {[%clk 0:01:32]} 25.
Rxc3 {[%clk 0:00:56.5]} 25... Rxc3 {[%clk 0:01:31.1]} 26. Rd7 {[%clk 0:00:56.4]}
26... Rxb3 {[%clk 0:01:31.1]} 27. Rxa7 {[%clk 0:00:54.5]} 27... Rxb5 {[%clk
0:01:31.1]} 28. Rc7 {[%clk 0:00:52.4]} 28... Rb2 {[%clk 0:01:30.5]} 29. g3
{[%clk 0:00:50.8]} 29... h5 {[%clk 0:01:29.7]} 30. h4 {[%clk 0:00:49.3]} 30...
Rb5 {[%clk 0:01:25]} 31. Kg2 {[%clk 0:00:48.9]} 31... Rd5 {[%clk 0:01:25.2]} 32.
Ra7 {[%clk 0:00:46.5]} 32... Kf6 {[%clk 0:01:25.1]} 33. Rb7 {[%clk 0:00:45.8]}
33... Rd8 {[%clk 0:01:25.3]} 34. Ra7 {[%clk 0:00:45]} 34... Re8 {[%clk
0:01:25.5]} 35. Kf3 {[%clk 0:00:44.6]} 35... Re7 {[%clk 0:01:25.7]} 36. Ra5
{[%clk 0:00:43.7]} 36... Kg7 {[%clk 0:01:25.9]} 37. Kf4 {[%clk 0:00:41.4]} 37...
Rb7 {[%clk 0:01:24.6]} 38. Rc5 {[%clk 0:00:39.5]} 38... Kh6 {[%clk 0:01:21.7]}
39. Ra5 {[%clk 0:00:38.2]} 39... Rb2 {[%clk 0:01:18.4]} 40. Kf3 {[%clk
0:00:37.8]} 40... Rb3+ {[%clk 0:01:18.8]} 41. Kg2 {[%clk 0:00:36.8]} 41... Rb7
{[%clk 0:01:19.7]} 42. Rb5 {[%clk 0:00:36.4]} 42... Re7 {[%clk 0:01:17.6]} 43.
Ra5 {[%clk 0:00:35.6]} 43... e5 {[%clk 0:01:10.7]} 44. Rc5 {[%clk 0:00:33.8]}
44... g5 {[%clk 0:01:10.5]} 45. hxg5+ {[%clk 0:00:32.7]} 45... Kxg5 {[%clk
0:01:11.4]} 46. f4+ {[%clk 0:00:30.6]} 46... Kf6 {[%clk 0:01:08.1]} 47. fxe5+
{[%clk 0:00:30.3]} 47... Rxe5 {[%clk 0:01:07.5]} 48. Rc6+ {[%clk 0:00:28.9]}
48... Kg5 {[%clk 0:01:06.9]} 49. Kh3 {[%clk 0:00:28.1]} 49... Re3 {[%clk
0:01:04.7]} 50. Rc5+ {[%clk 0:00:26.5]} 50... f5 {[%clk 0:01:04.8]} 51. Rc8
{[%clk 0:00:23.6]} 51... Re6 {[%clk 0:01:01.4]} 52. Kg2 {[%clk 0:00:22.7]} 52...
Rg6 {[%clk 0:00:59.9]} 53. Kf3 {[%clk 0:00:22.3]} 53... Rg7 {[%clk 0:00:53.4]}
54. Rc5 {[%clk 0:00:21.6]} 54... Ra7 {[%clk 0:00:48.6]} 55. Rb5 {[%clk
0:00:20.9]} 55... Ra3+ {[%clk 0:00:45.5]} 56. Kg2 {[%clk 0:00:19.7]} 56... Ra4
{[%clk 0:00:42.8]} 57. Kf3 {[%clk 0:00:17.2]} 57... h4 {[%clk 0:00:41.8]} 58.
gxh4+ {[%clk 0:00:16.8]} 58... Rxh4 {[%clk 0:00:42.6]} 59. Kg3 {[%clk
0:00:14.9]} 59... Ra4 {[%clk 0:00:42.1]} 60. Kf3 {[%clk 0:00:14.1]} 60... Ra3+
{[%clk 0:00:42.1]} 61. Kf2 {[%clk 0:00:13.1]} 61... Kg4 {[%clk 0:00:42.4]} 62.
Rb8 {[%clk 0:00:12.3]} 62... Ra2+ {[%clk 0:00:41.5]} 63. Kg1 {[%clk 0:00:09.4]}
63... Kg3 {[%clk 0:00:38.7]} 64. Rg8+ {[%clk 0:00:08.5]} 64... Kf3 {[%clk
0:00:38.6]} 65. Rf8 {[%clk 0:00:04.9]} 65... Ra1+ {[%clk 0:00:38.1]} 66. Kh2
{[%clk 0:00:04.6]} 66... f4 {[%clk 0:00:37.8]} 67. Rb8 {[%clk 0:00:02.3]} 67...
Kf2 {[%clk 0:00:33.5]} 68. Rb2+ {[%clk 0:00:01.7]} 68... Kf1 {[%clk 0:00:31.7]}
0-1